[Event "Kupreichik Memorial Open 2018"]
[Site "Minsk"]
[Date "2018.06.21"]
[Round "1"]
[White "Kuznetsov, Mikhail V"]
[Black "Ustiugov, Boris"]
[Result "1-0"]
[ECO "D10"]
[WhiteElo "2162"]
[BlackElo "1614"]
[Annotator "NA"]
[PlyCount "51"]
[EventDate "2018.06.21"]
[EventCountry "BLR"]
[SourceTitle "playchess.com"]
[Source "ChessBase"]
[SourceQuality "1"]
[TimeControl "900+10"]

1. d4 {[%emt 0:00:00]} Nf6 {[%emt 0:00:03]} 2. Nf3 {[%emt 0:00:00]} d5 {[%emt 0:00:05]} 3. c4 {[%emt 0:00:00]} c6 {[%emt 0:00:02]} 4. cxd5 {[%emt 0:00:01]} cxd5 {[%emt 0:00:09]} 5. Nc3 {[%emt 0:00:03]} a6 {[%emt 0:00:06]} 6. Bf4 {[%emt 0:00:03]} e6 {[%emt 0:00:17]} 7. e3 {[%emt 0:00:10]} Bd6 {[%emt 0:00:08]} 8. Bxd6 {[%emt 0:00:16]} Qxd6 {[%emt 0:00:01]} 9. Ne5 {[%emt 0:00:02]} Nc6 {[%emt 0:00:21]} 10. f4 {[%emt 0:00:04]} b5 {[%emt 0:00:22]} 11. Bd3 {[%emt 0:00:19]} Bb7 {[%emt 0:00:08]} 12. O-O {[%emt 0:00:04]} Rc8 {[%emt 0:00:18]} 13. Rc1 {[%emt 0:00:38]} O-O {[%emt 0:00:18]} 14. Kh1 {[%emt 0:00:52]} Na7 {[%emt 0:01:41]} 15. Qf3 {[%emt 0:01:02]} g6 {[%emt 0:00:33]} 16. f5 {[%emt 0:02:41]} exf5 {[%emt 0:00:49]} 17. Bxf5 {[%emt 0:00:07]} Ne4 {[%emt 0:02:10]} 18. Bxc8 {[%emt 0:02:15]} Bxc8 {[%emt 0:01:40]} 19. Nxe4 {[%emt 0:00:12]} dxe4 {[%emt 0:00:10]} 20. Qxe4 {[%emt 0:00:44]} Be6 {[%emt 0:01:55]} 21. Qb7 {[%emt 0:00:39]} Nc8 {[%emt 0:00:56]} 22. Nxf7 {[%emt 0:01:00]} Bxf7 {[%emt 0:03:30]} 23. Rxc8 {[%emt 0:00:16]} Rxc8 {[%emt 0:00:19]} 24. Qxc8+ {[%emt 0:00:04]} Kg7 {[%emt 0:00:02]} 25. Qb7 {[%emt 0:00:27]} g5 {[%emt 0:00:11]} 26. Qxf7+ {[%emt 0:00:11]} 1-0

[Event "Kupreichik Memorial Open 2018"]
[Site "Minsk"]
[Date "2018.06.21"]
[Round "1"]
[White "Katashuk, Uladzislau"]
[Black "Halouchyts, Karalina"]
[Result "1-0"]
[ECO "B07"]
[WhiteElo "2149"]
[BlackElo "1603"]
[Annotator "NA"]
[PlyCount "36"]
[EventDate "2018.06.21"]
[EventCountry "BLR"]
[SourceTitle "playchess.com"]
[Source "ChessBase"]
[SourceQuality "1"]
[TimeControl "900+10"]

1. e4 {[%emt 0:00:00]} d6 {[%emt 0:00:01]} 2. d4 {[%emt 0:00:01]} Nf6 {[%emt 0:00:02]} 3. Nc3 {[%emt 0:00:01]} Nbd7 {[%emt 0:00:02]} 4. h3 {[%emt 0:00:01]} e5 {[%emt 0:00:06]} 5. Nge2 {[%emt 0:00:02]} c6 {[%emt 0:00:22]} 6. Be3 {[%emt 0:00:05]} g6 {[%emt 0:01:13]} 7. Qd2 {[%emt 0:00:02]} Bg7 {[%emt 0:00:04]} 8. g4 {[%emt 0:00:09]} h6 {[%emt 0:00:15]} 9. Bg2 {[%emt 0:00:02]} Qc7 {[%emt 0:00:09]} 10. O-O {[%emt 0:00:10]} exd4 {[%emt 0:01:34]} 11. Nxd4 {[%emt 0:00:35]} Ne5 {[%emt 0:00:51]} 12. b3 {[%emt 0:02:53]} g5 {[%emt 0:02:43]} 13. Rad1 {[%emt 0:00:43]} Bf8 {[%emt 0:03:05]} 14. f4 {[%emt 0:00:48]} gxf4 {[%emt 0:04:03]} 15. Rxf4 {[%emt 0:03:56]} Ng8 {[%emt 0:02:19]} 16. Nf5 {[%emt 0:00:39]} Bxf5 {[%emt 0:00:20]} 17. exf5 {[%emt 0:00:06]} Nf6 {[%emt 0:00:34]} 18. Qf2 {[%emt 0:02:03]} b6 {[%emt 0:00:00]} 1-0

[Event "Kupreichik Memorial Open 2018"]
[Site "Minsk"]
[Date "2018.06.21"]
[Round "1"]
[White "Vashchilov, Sergey"]
[Black "Drobyshevsky, Vasily"]
[Result "1-0"]
[ECO "A48"]
[WhiteElo "2122"]
[BlackElo "1551"]
[Annotator "NA"]
[PlyCount "91"]
[EventDate "2018.06.21"]
[EventCountry "BLR"]
[SourceTitle "playchess.com"]
[Source "ChessBase"]
[SourceQuality "1"]
[TimeControl "900+10"]

1. d4 {[%emt 0:00:00]} Nf6 {[%emt 0:00:03]} 2. Nf3 {[%emt 0:00:00]} g6 {[%emt 0:00:04]} 3. Bf4 {[%emt 0:00:00]} d6 {[%emt 0:00:01]} 4. e3 {[%emt 0:00:02]} Bg7 {[%emt 0:00:04]} 5. h3 {[%emt 0:00:01]} O-O {[%emt 0:00:27]} 6. Bd3 {[%emt 0:00:01]} Nbd7 {[%emt 0:00:05]} 7. O-O {[%emt 0:00:03]} Qe8 {[%emt 0:00:11]} 8. Bh2 {[%emt 0:01:37]} e5 {[%emt 0:00:10]} 9. Bb5 {[%emt 0:00:11]} c6 {[%emt 0:00:29]} 10. Be2 {[%emt 0:00:03]} Qe7 {[%emt 0:00:35]} 11. c4 {[%emt 0:00:32]} e4 {[%emt 0:00:55]} 12. Nfd2 {[%emt 0:00:02]} d5 {[%emt 0:00:02]} 13. Nc3 {[%emt 0:00:20]} b6 {[%emt 0:00:56]} 14. cxd5 {[%emt 0:00:12]} cxd5 {[%emt 0:00:04]} 15. Nb5 {[%emt 0:00:05]} Ne8 {[%emt 0:00:30]} 16. Qb3 {[%emt 0:00:38]} Bb7 {[%emt 0:00:18]} 17. Rac1 {[%emt 0:00:10]} Ndf6 {[%emt 0:02:09]} 18. Rc2 {[%emt 0:00:54]} Ba6 {[%emt 0:01:46]} 19. Rfc1 {[%emt 0:00:21]} Bxb5 {[%emt 0:00:10]} 20. Bxb5 {[%emt 0:00:01]} Nd6 {[%emt 0:01:58]} 21. Bc6 {[%emt 0:00:07]} Rac8 {[%emt 0:00:28]} 22. Bxd5 {[%emt 0:00:04]} Rxc2 {[%emt 0:00:02]} 23. Rxc2 {[%emt 0:00:01]} Rc8 {[%emt 0:01:05]} 24. Bxd6 {[%emt 0:00:05]} Qxd6 {[%emt 0:00:11]} 25. Rxc8+ {[%emt 0:00:01]} Bf8 {[%emt 0:00:04]} 26. Nxe4 {[%emt 0:00:59]} Nxe4 {[%emt 0:00:08]} 27. Bxe4 {[%emt 0:00:02]} Qd7 {[%emt 0:00:10]} 28. Rb8 {[%emt 0:00:35]} Qc7 {[%emt 0:00:22]} 29. Rb7 {[%emt 0:00:14]} Qc1+ {[%emt 0:00:11]} 30. Kh2 {[%emt 0:00:01]} Bd6+ {[%emt 0:00:02]} 31. g3 {[%emt 0:00:19]} Bxg3+ {[%emt 0:04:20]} 32. fxg3 {[%emt 0:00:07]} Qd2+ {[%emt 0:00:15]} 33. Bg2 {[%emt 0:00:02]} Qf2 {[%emt 0:00:06]} 34. Rxf7 {[%emt 0:00:05]} Qxf7 {[%emt 0:00:05]} 35. Bd5 {[%emt 0:00:01]} Qxd5 {[%emt 0:00:04]} 36. Qxd5+ {[%emt 0:00:02]} Kg7 {[%emt 0:00:00]} 37. g4 {[%emt 0:00:07]} a5 {[%emt 0:00:03]} 38. g5 {[%emt 0:00:02]} b5 {[%emt 0:00:02]} 39. Qd7+ {[%emt 0:00:02]} Kf8 {[%emt 0:00:01]} 40. Qxh7 {[%emt 0:00:06]} b4 {[%emt 0:00:01]} 41. Qxg6 {[%emt 0:00:04]} b3 {[%emt 0:00:02]} 42. axb3 {[%emt 0:00:04]} a4 {[%emt 0:00:01]} 43. bxa4 {[%emt 0:00:03]} Ke7 {[%emt 0:00:02]} 44. Qf6+ {[%emt 0:00:02]} Kd7 {[%emt 0:00:01]} 45. g6 {[%emt 0:00:03]} Kc7 {[%emt 0:00:02]} 46. g7 {[%emt 0:00:03]} 1-0

[Event "Kupreichik Memorial Open 2018"]
[Site "Minsk"]
[Date "2018.06.21"]
[Round "1"]
[White "Sirotkina, Nina"]
[Black "Korniichuk, Fedir"]
[Result "1-0"]
[ECO "A45"]
[WhiteElo "2116"]
[BlackElo "1568"]
[Annotator "NA"]
[PlyCount "59"]
[EventDate "2018.06.21"]
[EventCountry "BLR"]
[SourceTitle "playchess.com"]
[Source "ChessBase"]
[SourceQuality "1"]
[TimeControl "900+10"]

1. d4 {[%emt 0:00:00]} Nf6 {[%emt 0:00:03]} 2. Bf4 {[%emt 0:00:00]} e6 {[%emt 0:00:14]} 3. Nd2 {[%emt 0:00:15]} d5 {[%emt 0:00:07]} 4. e3 {[%emt 0:00:20]} Be7 {[%emt 0:00:04]} 5. Bd3 {[%emt 0:00:24]} O-O {[%emt 0:00:06]} 6. Ngf3 {[%emt 0:01:20]} c5 {[%emt 0:00:23]} 7. c3 {[%emt 0:00:09]} Nc6 {[%emt 0:00:10]} 8. O-O {[%emt 0:00:38]} b6 {[%emt 0:00:12]} 9. Ne5 {[%emt 0:00:22]} Bb7 {[%emt 0:00:12]} 10. Qe2 {[%emt 0:00:53]} c4 {[%emt 0:01:07]} 11. Bc2 {[%emt 0:00:22]} Rc8 {[%emt 0:00:53]} 12. e4 {[%emt 0:01:25]} Re8 {[%emt 0:00:48]} 13. Nxc6 {[%emt 0:00:40]} Bxc6 {[%emt 0:00:12]} 14. e5 {[%emt 0:00:03]} Nd7 {[%emt 0:00:50]} 15. Qg4 {[%emt 0:00:40]} Kh8 {[%emt 0:00:42]} 16. Rfe1 {[%emt 0:00:39]} Nf8 {[%emt 0:00:41]} 17. Re3 {[%emt 0:00:43]} Ng6 {[%emt 0:00:23]} 18. Rh3 {[%emt 0:00:29]} Kg8 {[%emt 0:01:18]} 19. Qh5 {[%emt 0:00:39]} h6 {[%emt 0:00:42]} 20. Bxg6 {[%emt 0:01:14]} fxg6 {[%emt 0:00:11]} 21. Qxg6 {[%emt 0:00:04]} Bg5 {[%emt 0:01:03]} 22. Rg3 {[%emt 0:00:55]} Qe7 {[%emt 0:00:41]} 23. Bxg5 {[%emt 0:00:13]} hxg5 {[%emt 0:00:03]} 24. Rh3 {[%emt 0:00:41]} Rf8 {[%emt 0:00:34]} 25. Nf3 {[%emt 0:00:32]} Rxf3 {[%emt 0:01:42]} 26. Qh7+ {[%emt 0:00:23]} Kf7 {[%emt 0:00:15]} 27. Rxf3+ {[%emt 0:00:03]} Ke8 {[%emt 0:00:05]} 28. Qg6+ {[%emt 0:00:10]} Kd8 {[%emt 0:00:17]} 29. Rf7 {[%emt 0:00:23]} Qe8 {[%emt 0:00:56]} 30. Qxg5+ {[%emt 0:00:06]} 1-0

[Event "Kupreichik Memorial Open 2018"]
[Site "Minsk"]
[Date "2018.06.21"]
[Round "1"]
[White "Runets, Ivan"]
[Black "Boiko, Aleksei"]
[Result "1-0"]
[ECO "B02"]
[WhiteElo "2027"]
[BlackElo "1526"]
[Annotator "NA"]
[PlyCount "83"]
[EventDate "2018.06.21"]
[EventCountry "BLR"]
[SourceTitle "playchess.com"]
[Source "ChessBase"]
[SourceQuality "1"]
[TimeControl "900+10"]

1. e4 {[%emt 0:00:00]} Nf6 {[%emt 0:00:00]} 2. Nc3 {[%emt 0:00:02]} d5 {[%emt 0:00:02]} 3. exd5 {[%emt 0:00:10]} Nxd5 {[%emt 0:00:01]} 4. Nf3 {[%emt 0:00:21]} Nc6 {[%emt 0:00:04]} 5. Be2 {[%emt 0:00:12]} Nxc3 {[%emt 0:00:21]} 6. bxc3 {[%emt 0:00:20]} g6 {[%emt 0:00:02]} 7. O-O {[%emt 0:00:09]} Bg7 {[%emt 0:00:02]} 8. d4 {[%emt 0:00:06]} O-O {[%emt 0:00:07]} 9. Rb1 {[%emt 0:00:12]} b6 {[%emt 0:00:11]} 10. Bf4 {[%emt 0:00:12]} Bb7 {[%emt 0:00:02]} 11. Re1 {[%emt 0:00:21]} Re8 {[%emt 0:00:01]} 12. d5 {[%emt 0:02:24]} Na5 {[%emt 0:02:10]} 13. c4 {[%emt 0:00:25]} e6 {[%emt 0:01:32]} 14. dxe6 {[%emt 0:00:21]} Rxe6 {[%emt 0:00:20]} 15. Qxd8+ {[%emt 0:01:00]} Rxd8 {[%emt 0:00:02]} 16. Red1 {[%emt 0:01:25]} Rxd1+ {[%emt 0:01:10]} 17. Rxd1 {[%emt 0:00:06]} Kf8 {[%emt 0:01:29]} 18. Kf1 {[%emt 0:00:22]} Ke8 {[%emt 0:01:59]} 19. Bxc7 {[%emt 0:01:08]} Ba6 {[%emt 0:00:03]} 20. Rd8+ {[%emt 0:01:40]} Ke7 {[%emt 0:00:02]} 21. Rg8 {[%emt 0:00:28]} Bf6 {[%emt 0:00:02]} 22. Bd8+ {[%emt 0:00:30]} Kd6 {[%emt 0:00:28]} 23. Bxf6 {[%emt 0:00:07]} Rxf6 {[%emt 0:00:02]} 24. Nd2 {[%emt 0:00:52]} Ke5 {[%emt 0:00:31]} 25. Nf3+ {[%emt 0:00:38]} Kd6 {[%emt 0:00:05]} 26. c5+ {[%emt 0:00:01]} Kxc5 {[%emt 0:00:11]} 27. Bxa6 {[%emt 0:00:02]} b5 {[%emt 0:00:06]} 28. Bc8 {[%emt 0:00:08]} Kb4 {[%emt 0:00:10]} 29. Rd8 {[%emt 0:00:13]} Rc6 {[%emt 0:00:20]} 30. Nd4 {[%emt 0:00:26]} Rc4 {[%emt 0:00:06]} 31. a3+ {[%emt 0:00:20]} Kc5 {[%emt 0:00:24]} 32. Nb3+ {[%emt 0:00:44]} Kb6 {[%emt 0:00:02]} 33. Rd6+ {[%emt 0:01:17]} Kc7 {[%emt 0:00:13]} 34. Nxa5 {[%emt 0:00:04]} Rxc2 {[%emt 0:00:24]} 35. Rd7+ {[%emt 0:00:22]} Kxc8 {[%emt 0:00:01]} 36. Rxa7 {[%emt 0:00:01]} Rc3 {[%emt 0:00:15]} 37. Rxf7 {[%emt 0:00:32]} Rxa3 {[%emt 0:00:04]} 38. Nc6 {[%emt 0:00:02]} Rc3 {[%emt 0:00:03]} 39. Na7+ {[%emt 0:00:02]} Kd8 {[%emt 0:00:04]} 40. Nxb5 {[%emt 0:00:02]} Rb3 {[%emt 0:00:03]} 41. Nd4 {[%emt 0:00:03]} Rd3 {[%emt 0:00:07]} 42. Nf3 {[%emt 0:00:04]} 1-0

[Event "Kupreichik Memorial Open 2018"]
[Site "Minsk"]
[Date "2018.06.21"]
[Round "1"]
[White "Stroganova, Karina"]
[Black "Meshkov, Yuri A"]
[Result "0-1"]
[ECO "A46"]
[WhiteElo "1776"]
[BlackElo "2375"]
[Annotator "NA"]
[PlyCount "82"]
[EventDate "2018.06.21"]
[EventCountry "BLR"]
[SourceTitle "playchess.com"]
[Source "ChessBase"]
[SourceQuality "1"]
[TimeControl "900+10"]

1. d4 {[%emt 0:00:00]} Nf6 {[%emt 0:00:04]} 2. Nf3 {[%emt 0:00:00]} c5 {[%emt 0:00:06]} 3. c4 {[%emt 0:00:18]} cxd4 {[%emt 0:00:06]} 4. Nxd4 {[%emt 0:00:06]} e5 {[%emt 0:00:01]} 5. Nf3 {[%emt 0:00:09]} e4 {[%emt 0:00:24]} 6. Nd4 {[%emt 0:00:24]} Nc6 {[%emt 0:00:21]} 7. g3 {[%emt 0:00:58]} Qb6 {[%emt 0:01:28]} 8. Nxc6 {[%emt 0:01:19]} Bc5 {[%emt 0:00:24]} 9. e3 {[%emt 0:01:06]} dxc6 10. Bg2 {[%emt 0:00:15]} h5 {[%emt 0:03:47]} 11. Nc3 {[%emt 0:01:03]} Qb4 {[%emt 0:01:04]} 12. Qe2 {[%emt 0:02:14]} Bg4 {[%emt 0:00:06]} 13. Qc2 {[%emt 0:00:17]} Qxc4 {[%emt 0:00:35]} 14. b3 {[%emt 0:02:35]} Qe6 {[%emt 0:00:42]} 15. Bb2 {[%emt 0:00:42]} Bf3 {[%emt 0:02:02]} 16. Bxf3 {[%emt 0:00:59]} exf3 {[%emt 0:00:01]} 17. O-O-O {[%emt 0:00:18]} O-O {[%emt 0:00:41]} 18. Kb1 {[%emt 0:00:30]} Rfd8 {[%emt 0:00:23]} 19. Nb5 {[%emt 0:00:58]} Bb6 {[%emt 0:01:01]} 20. Nd4 {[%emt 0:00:03]} Bxd4 {[%emt 0:00:10]} 21. Rxd4 {[%emt 0:00:24]} Rxd4 {[%emt 0:00:02]} 22. Bxd4 {[%emt 0:00:02]} Ne4 {[%emt 0:00:01]} 23. Rd1 {[%emt 0:00:35]} c5 {[%emt 0:00:42]} 24. Bb2 {[%emt 0:00:39]} b6 {[%emt 0:00:33]} 25. Rd3 {[%emt 0:01:02]} Re8 {[%emt 0:00:03]} 26. Rd1 {[%emt 0:01:03]} f6 {[%emt 0:00:40]} 27. Rc1 {[%emt 0:00:58]} Rd8 {[%emt 0:00:14]} 28. Rd1 {[%emt 0:00:08]} Rxd1+ {[%emt 0:00:06]} 29. Qxd1 {[%emt 0:00:01]} Nxf2 {[%emt 0:00:06]} 30. Qxf3 {[%emt 0:00:31]} Qe4+ {[%emt 0:00:01]} 31. Qxe4 {[%emt 0:00:03]} Nxe4 {[%emt 0:00:01]} 32. Kc2 {[%emt 0:00:04]} Kf7 {[%emt 0:00:10]} 33. Kd3 {[%emt 0:00:08]} Nd6 {[%emt 0:00:02]} 34. e4 {[%emt 0:00:04]} Ke6 {[%emt 0:00:01]} 35. h3 Nf7 36. g4 {[%emt 0:00:38]} hxg4 {[%emt 0:00:08]} 37. hxg4 {[%emt 0:00:02]} Ne5+ {[%emt 0:00:05]} 38. Ke3 {[%emt 0:00:21]} Nxg4+ {[%emt 0:00:03]} 39. Kf4 {[%emt 0:00:09]} Nf2 {[%emt 0:00:05]} 40. Bc3 {[%emt 0:00:08]} g5+ {[%emt 0:00:21]} 41. Ke3 {[%emt 0:00:08]} Nd1+ {[%emt 0:00:01]} 0-1

[Event "Kupreichik Memorial Open 2018"]
[Site "Minsk"]
[Date "2018.06.21"]
[Round "1"]
[White "Papunidi, Matvey"]
[Black "Barskij, Vladimir"]
[Result "1-0"]
[ECO "B80"]
[WhiteElo "1751"]
[BlackElo "2352"]
[Annotator "NA"]
[PlyCount "131"]
[EventDate "2018.06.21"]
[EventCountry "BLR"]
[SourceTitle "playchess.com"]
[Source "ChessBase"]
[SourceQuality "1"]
[TimeControl "900+10"]

1. e4 {[%emt 0:00:00]} c5 {[%emt 0:00:01]} 2. Nf3 {[%emt 0:00:00]} e6 {[%emt 0:00:02]} 3. d4 {[%emt 0:00:00]} cxd4 {[%emt 0:00:01]} 4. Nxd4 {[%emt 0:00:02]} Nf6 {[%emt 0:00:02]} 5. Nc3 {[%emt 0:00:03]} d6 {[%emt 0:00:01]} 6. Bg5 {[%emt 0:00:14]} h6 {[%emt 0:00:17]} 7. Bh4 {[%emt 0:00:28]} Nc6 {[%emt 0:00:33]} 8. Qd2 {[%emt 0:01:38]} Nxe4 {[%emt 0:04:34]} 9. Bxd8 {[%emt 0:06:34]} Nxd2 {[%emt 0:00:03]} 10. Bb5 {[%emt 0:02:13]} Bd7 {[%emt 0:04:53]} 11. Bh4 {[%emt 0:03:12]} Nxd4 {[%emt 0:00:37]} 12. Bxd7+ {[%emt 0:00:01]} Kxd7 {[%emt 0:00:02]} 13. Kxd2 {[%emt 0:00:01]} Nf5 {[%emt 0:01:11]} 14. Bg3 {[%emt 0:00:06]} Nxg3 {[%emt 0:00:03]} 15. hxg3 {[%emt 0:00:09]} d5 {[%emt 0:00:04]} 16. a3 {[%emt 0:00:41]} Be7 {[%emt 0:00:44]} 17. Ne2 {[%emt 0:01:04]} Rac8 {[%emt 0:00:33]} 18. Rad1 {[%emt 0:00:02]} Bg5+ {[%emt 0:00:18]} 19. f4 {[%emt 0:00:05]} Bf6 {[%emt 0:00:04]} 20. Kc1 {[%emt 0:00:09]} Rc4 {[%emt 0:00:20]} 21. Kb1 {[%emt 0:00:10]} Re4 {[%emt 0:00:25]} 22. Nc1 {[%emt 0:00:33]} Rc8 {[%emt 0:00:15]} 23. Rhe1 {[%emt 0:00:23]} Rcc4 {[%emt 0:00:34]} 24. Nb3 {[%emt 0:00:40]} b6 {[%emt 0:01:47]} 25. c3 {[%emt 0:00:03]} Rxe1 {[%emt 0:00:23]} 26. Rxe1 {[%emt 0:00:01]} Re4 {[%emt 0:00:02]} 27. Rxe4 {[%emt 0:00:17]} dxe4 {[%emt 0:00:02]} 28. Nd2 {[%emt 0:00:22]} e3 {[%emt 0:00:02]} 29. Nf3 {[%emt 0:00:01]} g5 {[%emt 0:00:17]} 30. Kc2 {[%emt 0:00:31]} g4 {[%emt 0:00:02]} 31. Ng1 {[%emt 0:00:06]} Kc6 {[%emt 0:00:31]} 32. Kd3 {[%emt 0:00:01]} Kb5 {[%emt 0:00:06]} 33. Kxe3 {[%emt 0:00:22]} Kc4 {[%emt 0:00:05]} 34. Kd2 {[%emt 0:00:02]} a5 {[%emt 0:00:07]} 35. Kc2 {[%emt 0:00:14]} a4 {[%emt 0:00:01]} 36. Ne2 {[%emt 0:00:03]} Be7 {[%emt 0:00:13]} 37. Nd4 {[%emt 0:00:15]} Bc5 {[%emt 0:00:06]} 38. Nc6 {[%emt 0:00:02]} Kd5 {[%emt 0:00:29]} 39. Ne5 {[%emt 0:00:14]} f5 {[%emt 0:00:12]} 40. Nd3 {[%emt 0:00:21]} Be3 {[%emt 0:00:23]} 41. Kd1 {[%emt 0:00:08]} Ke4 {[%emt 0:00:19]} 42. Ke2 {[%emt 0:00:04]} b5 {[%emt 0:00:15]} 43. Ne5 {[%emt 0:00:21]} Bc5 {[%emt 0:00:28]} 44. Nd3 Bd6 {[%emt 0:00:02]} 45. Nf2+ {[%emt 0:00:16]} Kd5 {[%emt 0:00:04]} 46. Nd3 {[%emt 0:00:10]} Kc4 {[%emt 0:00:20]} 47. Kd2 {[%emt 0:00:04]} h5 {[%emt 0:00:13]} 48. Kc2 {[%emt 0:00:10]} Kd5 {[%emt 0:00:13]} 49. Kd2 {[%emt 0:00:01]} Bc7 {[%emt 0:00:10]} 50. Nb4+ {[%emt 0:00:17]} Ke4 {[%emt 0:00:03]} 51. Nd3 {[%emt 0:00:17]} Bb6 {[%emt 0:00:26]} 52. Ke2 {[%emt 0:00:02]} Be3 {[%emt 0:00:14]} 53. Nb4 {[%emt 0:00:20]} h4 {[%emt 0:00:02]} 54. gxh4 {[%emt 0:00:06]} Bxf4 {[%emt 0:00:05]} 55. Nc6 {[%emt 0:00:18]} Bc1 {[%emt 0:00:09]} 56. Na7 {[%emt 0:00:01]} f4 {[%emt 0:00:06]} 57. Nxb5 {[%emt 0:00:07]} Bxb2 {[%emt 0:00:13]} 58. c4 {[%emt 0:00:17]} Bf6 {[%emt 0:00:35]} 59. h5 {[%emt 0:00:04]} f3+ {[%emt 0:00:13]} 60. gxf3+ {[%emt 0:00:03]} gxf3+ {[%emt 0:00:03]} 61. Kf2 {[%emt 0:00:08]} Bh4+ {[%emt 0:00:03]} 62. Kf1 {[%emt 0:00:01]} e5 {[%emt 0:00:19]} 63. Nd6+ {[%emt 0:00:33]} Kd3 {[%emt 0:00:12]} 64. c5 {[%emt 0:00:12]} e4 {[%emt 0:00:15]} 65. Nxe4 {[%emt 0:00:01]} Kxe4 {[%emt 0:00:01]} 66. c6 {[%emt 0:00:01]} 1-0

[Event "Kupreichik Memorial Open 2018"]
[Site "Minsk"]
[Date "2018.06.21"]
[Round "1"]
[White "Korniichuk, Oleksandra"]
[Black "Tihonov, Jurij"]
[Result "1/2-1/2"]
[ECO "B90"]
[WhiteElo "1740"]
[BlackElo "2385"]
[Annotator "NA"]
[PlyCount "185"]
[EventDate "2018.06.21"]
[EventCountry "BLR"]
[SourceTitle "playchess.com"]
[Source "ChessBase"]
[SourceQuality "1"]
[TimeControl "900+10"]

1. e4 {[%emt 0:00:00]} c5 {[%emt 0:00:06]} 2. Nf3 {[%emt 0:00:00]} d6 {[%emt 0:00:02]} 3. d4 {[%emt 0:00:05]} cxd4 {[%emt 0:00:02]} 4. Nxd4 {[%emt 0:00:05]} Nf6 {[%emt 0:00:03]} 5. Nc3 {[%emt 0:00:08]} a6 {[%emt 0:00:02]} 6. Be3 {[%emt 0:00:13]} e5 {[%emt 0:00:03]} 7. Nb3 {[%emt 0:00:18]} Be7 {[%emt 0:00:04]} 8. Be2 {[%emt 0:00:20]} O-O {[%emt 0:00:05]} 9. O-O {[%emt 0:00:11]} Be6 {[%emt 0:00:01]} 10. f3 {[%emt 0:00:47]} Qc7 {[%emt 0:00:12]} 11. Nd5 {[%emt 0:00:26]} Bxd5 {[%emt 0:00:04]} 12. exd5 {[%emt 0:00:08]} Nbd7 {[%emt 0:00:02]} 13. c4 {[%emt 0:00:43]} Rfe8 {[%emt 0:00:02]} 14. Qd3 {[%emt 0:00:45]} a5 {[%emt 0:00:02]} 15. Rfd1 {[%emt 0:00:36]} b6 {[%emt 0:00:07]} 16. Rac1 {[%emt 0:00:44]} Bf8 {[%emt 0:00:04]} 17. Nd2 {[%emt 0:00:54]} g6 {[%emt 0:00:06]} 18. Ne4 {[%emt 0:00:07]} Bg7 {[%emt 0:00:04]} 19. Qd2 {[%emt 0:01:19]} Nh5 {[%emt 0:00:07]} 20. Bh6 {[%emt 0:00:46]} Nc5 {[%emt 0:00:11]} 21. Bxg7 {[%emt 0:01:00]} Kxg7 {[%emt 0:00:02]} 22. Qe3 {[%emt 0:00:26]} f5 {[%emt 0:00:02]} 23. Nxc5 {[%emt 0:00:02]} bxc5 {[%emt 0:00:02]} 24. b3 {[%emt 0:00:15]} Nf6 {[%emt 0:00:08]} 25. Qc3 {[%emt 0:00:19]} h5 {[%emt 0:00:18]} 26. Rf1 {[%emt 0:00:35]} h4 {[%emt 0:00:02]} 27. Bd3 {[%emt 0:01:01]} h3 {[%emt 0:00:10]} 28. g3 {[%emt 0:00:40]} Kf7 {[%emt 0:00:11]} 29. Rce1 {[%emt 0:01:00]} Re7 {[%emt 0:00:03]} 30. Qd2 {[%emt 0:00:19]} Kg7 {[%emt 0:00:03]} 31. Qg5 {[%emt 0:00:18]} Nh7 {[%emt 0:00:13]} 32. Qh4 {[%emt 0:00:31]} a4 {[%emt 0:00:01]} 33. Qxh3 {[%emt 0:00:43]} Rf7 {[%emt 0:00:02]} 34. Qg2 {[%emt 0:00:36]} Qb6 {[%emt 0:00:08]} 35. bxa4 {[%emt 0:00:18]} Rxa4 {[%emt 0:00:02]} 36. g4 {[%emt 0:00:11]} f4 {[%emt 0:00:20]} 37. h4 {[%emt 0:00:11]} Qa5 38. Re2 {[%emt 0:00:34]} Nf6 {[%emt 0:00:09]} 39. h5 {[%emt 0:00:12]} g5 {[%emt 0:00:02]} 40. h6+ {[%emt 0:00:37]} Kh8 {[%emt 0:00:02]} 41. Rb2 {[%emt 0:00:28]} Rb4 {[%emt 0:00:02]} 42. Rfb1 {[%emt 0:00:03]} Rfb7 {[%emt 0:00:01]} 43. Qc2 {[%emt 0:00:21]} Qa3 {[%emt 0:00:04]} 44. Rb3 {[%emt 0:00:09]} Rxb3 {[%emt 0:00:03]} 45. Rxb3 {[%emt 0:00:03]} Rxb3 {[%emt 0:00:02]} 46. axb3 {[%emt 0:00:07]} Qa1+ {[%emt 0:00:10]} 47. Kg2 {[%emt 0:00:06]} Qe1 {[%emt 0:00:06]} 48. Qf2 {[%emt 0:00:33]} Qc3 {[%emt 0:00:14]} 49. Qc2 {[%emt 0:00:03]} Qd4 {[%emt 0:00:08]} 50. Bf5 {[%emt 0:00:10]} Qa1 {[%emt 0:00:10]} 51. Qb1 {[%emt 0:00:04]} Qa5 {[%emt 0:00:43]} 52. Qc2 {[%emt 0:00:04]} Qe1 {[%emt 0:00:21]} 53. Qf2 {[%emt 0:00:08]} Qa1 {[%emt 0:00:05]} 54. Qc2 {[%emt 0:00:02]} Qa3 {[%emt 0:00:23]} 55. Qb1 {[%emt 0:00:04]} Ng8 {[%emt 0:00:10]} 56. h7 {[%emt 0:00:22]} Nf6 {[%emt 0:00:02]} 57. Qc2 {[%emt 0:00:04]} Kg7 {[%emt 0:00:06]} 58. Kf2 {[%emt 0:00:17]} Qa1 {[%emt 0:00:06]} 59. Kg2 {[%emt 0:00:02]} Ne8 {[%emt 0:00:25]} 60. Bd3 {[%emt 0:00:26]} Nf6 {[%emt 0:00:02]} 61. Bf5 {[%emt 0:00:01]} Qa8 {[%emt 0:00:03]} 62. Qb1 {[%emt 0:00:08]} Qa5 {[%emt 0:00:08]} 63. Qc2 {[%emt 0:00:13]} Kh8 {[%emt 0:00:04]} 64. Kf2 {[%emt 0:00:45]} Qa7 {[%emt 0:00:02]} 65. Kg2 {[%emt 0:00:07]} Qa5 {[%emt 0:00:24]} 66. Kf2 {[%emt 0:00:08]} Kg7 {[%emt 0:00:02]} 67. Kg2 {[%emt 0:00:07]} Qe1 {[%emt 0:00:01]} 68. Qf2 {[%emt 0:00:04]} Qa1 {[%emt 0:00:24]} 69. Qc2 {[%emt 0:00:06]} Qa3 {[%emt 0:00:23]} 70. Qb1 {[%emt 0:00:03]} Qa5 {[%emt 0:00:05]} 71. Qc2 {[%emt 0:00:02]} Qa1 {[%emt 0:00:01]} 72. Bd3 {[%emt 0:00:14]} Qe1 {[%emt 0:00:49]} 73. Qf2 {[%emt 0:00:03]} Qc3 {[%emt 0:00:10]} 74. Qc2 {[%emt 0:00:03]} Qd4 {[%emt 0:00:04]} 75. Bf5 {[%emt 0:00:05]} Qa1 {[%emt 0:00:31]} 76. Bd3 {[%emt 0:00:03]} Qe1 {[%emt 0:00:18]} 77. Qf2 {[%emt 0:00:02]} Qa1 {[%emt 0:00:31]} 78. Qc2 {[%emt 0:00:04]} e4 {[%emt 0:00:03]} 79. Bxe4 {[%emt 0:00:31]} Nd7 {[%emt 0:00:01]} 80. Bd3 {[%emt 0:00:34]} Ne5 {[%emt 0:00:05]} 81. Be2 {[%emt 0:00:03]} Qe1 {[%emt 0:00:03]} 82. Bd1 {[%emt 0:00:38]} Qg3+ {[%emt 0:00:05]} 83. Kf1 {[%emt 0:00:13]} Qh3+ {[%emt 0:00:18]} 84. Qg2 {[%emt 0:00:40]} Qxg2+ {[%emt 0:00:05]} 85. Kxg2 {[%emt 0:00:03]} Kxh7 {[%emt 0:00:03]} 86. Bc2+ {[%emt 0:00:04]} Kg7 {[%emt 0:00:01]} 87. Kf2 {[%emt 0:00:06]} Kf6 {[%emt 0:00:01]} 88. Be4 {[%emt 0:00:08]} Nd7 {[%emt 0:00:03]} 89. Ke2 {[%emt 0:00:10]} Ke5 {[%emt 0:00:00]} 90. Kd3 {[%emt 0:00:05]} Nb8 {[%emt 0:00:03]} 91. Kc3 {[%emt 0:00:04]} Na6 {[%emt 0:00:04]} 92. Bf5 {[%emt 0:00:13]} Nb4 {[%emt 0:00:06]} 93. Bb1 {[%emt 0:00:02]} 1/2-1/2